fUSD/lending_fUSD_20250119
["ID","MTS","AMOUNT","RATE_DAILY","PERIOD"]
[349600210,1737322253443,-338.30862512,0.00021643,2]
[349600212,1737322253453,-2723.8625127,0.00021667,2]
[349600214,1737322253462,-150.0,0.00021743,2]
[349600216,1737322253471,-3019.49507082,0.000218,2]
[349600218,1737322253480,-1000.0,0.000218,2]
[349600220,1737322253489,-150.0,0.00021812,2]
[349600222,1737322253497,-649.81,0.00021816,2]
[349600224,1737322253508,-500.0,0.00021816,2]
[349600226,1737322253517,-241.582488,0.00021816,2]
[349600228,1737322253527,-500.0,0.00021816,2]
[349600229,1737322253536,-500.0,0.00021816,2]
[349600231,1737322253546,-500.0,0.00021816,2]
[349600232,1737322253556,-633.64,0.00021816,2]
[349600234,1737322253565,-581.08,0.00021816,2]
[349600235,1737322253575,-505.9,0.00021816,2]
[349600237,1737322253585,-500.0,0.00021816,2]
[349600238,1737322253595,-595.1,0.00021816,2]
[349600239,1737322253604,-500.0,0.00021816,2]
[349600241,1737322253614,-619.73,0.00021816,2]
[349600242,1737322253627,-534.73,0.00021816,2]
[349600244,1737322253636,-770.67,0.00021816,2]
[349600245,1737322253646,-500.0,0.00021816,2]
[349600247,1737322253655,-500.0,0.00021816,2]
[349600249,1737322253665,-500.0,0.00021816,2]
[349600250,1737322253675,-1480.05,0.00021816,2]
[349600252,1737322253685,-500.0,0.00021816,2]
[349600253,1737322253695,-500.0,0.00021816,2]
[349600255,1737322253704,-1778.88,0.00021816,2]
[349600256,1737322253714,-649.07,0.00021816,2]
[349600257,1737322253723,-500.0,0.00021816,2]
[349600259,1737322253732,-770.99,0.00021816,2]
[349600261,1737322253741,-500.0,0.00021816,2]
[349600262,1737322253751,-500.0,0.00021816,2]
[349600264,1737322253760,-1405.28,0.00021816,2]
[349600265,1737322253769,-500.0,0.00021816,2]
[349600267,1737322253778,-500.0,0.00021816,2]
[349600268,1737322253788,-500.0,0.00021816,2]
[349600270,1737322253797,-500.0,0.00021816,2]
[349600272,1737322253807,-924.51,0.00021816,2]
[349600274,1737322253817,-500.0,0.00021816,2]
[349600275,1737322253827,-500.0,0.00021816,2]
[349600277,1737322253836,-1750.43,0.00021816,2]
[349600278,1737322253846,-608.38,0.00021816,2]
[349600280,1737322253855,-500.0,0.00021816,2]
[349600282,1737322253865,-500.0,0.00021816,2]
[349600283,1737322253880,-500.09,0.00021816,2]
[349600285,1737322253890,-500.0,0.00021816,2]
[349600287,1737322253900,-940.93,0.00021816,2]
[349600288,1737322253909,-500.0,0.00021816,2]
[349600290,1737322253920,-863.64,0.00021816,2]
[349600292,1737322253931,-500.0,0.00021816,2]
[349600293,1737322253940,-500.0,0.00021816,2]
[349600295,1737322253949,-702.71,0.00021816,2]
[349600297,1737322253958,-500.0,0.00021816,2]
[349600298,1737322253971,-710.23,0.00021816,2]
[349600300,1737322253981,-500.0,0.00021816,2]
[349600302,1737322253991,-500.0,0.00021816,2]
[349600304,1737322254000,-543.52,0.00021816,2]
[349600306,1737322254010,-1105.53,0.00021816,2]
[349600308,1737322254019,-593.7,0.00021816,2]
[349600310,1737322254028,-683.08,0.00021816,2]
[349600312,1737322254037,-500.0,0.00021816,2]
[349600314,1737322254048,-500.0,0.00021816,2]
[349600316,1737322254058,-807.0,0.00021816,2]
[349600318,1737322254067,-500.0,0.00021816,2]
[349600320,1737322254078,-522.78,0.00021816,2]
[349600322,1737322254087,-1482.4,0.00021816,2]
[349600324,1737322254097,-529.85634214,0.00021816,2]
[349600326,1737322254106,-500.0,0.00021816,2]
[349600328,1737322254116,-500.0,0.00021816,2]
[349600330,1737322254129,-500.0,0.00021816,2]
[349600332,1737322254138,-645.57,0.00021816,2]
[349600334,1737322254147,-1488.32,0.00021871,30]
[349600336,1737322254157,-151.0,0.00021872,2]
[349600337,1737322254166,-2000.0,0.0002189,2]
[349600338,1737322254176,-1369.19973162,0.000219,2]
[349600339,1737322254185,-185.73316756,0.000219,2]
[349600340,1737322254194,-2723.8625127,0.000219,2]
[349600341,1737322254203,-500.0,0.00021916,2]
[349600342,1737322254212,-500.0,0.00021916,2]
[349600343,1737322254221,-500.0,0.00021916,2]
[349600344,1737322254230,-500.0,0.00021916,2]
[349600345,1737322254239,-500.0,0.00021916,2]
[349600346,1737322254249,-500.0,0.00021916,2]
[349600347,1737322254258,-586.79057806,0.00021916,2]
[349600348,1737322254267,-421.77709735,0.00021916,2]
[349600349,1737322254276,-500.0,0.00021916,2]
[349600350,1737322254285,-500.0,0.00021916,2]
[349600351,1737322254295,-500.0,0.00021916,2]
[349600352,1737322254304,-601.47,0.00021916,2]
[349600353,1737322254312,-500.0,0.00021916,2]
[349600354,1737322254322,-500.0,0.00021916,2]
[349600356,1737322254331,-598.93,0.00021916,2]
[349600358,1737322254340,-500.0,0.00021916,2]
[349600360,1737322254349,-500.0,0.00021916,2]
[349600362,1737322254359,-500.0,0.00021916,2]
[349600364,1737322254369,-500.0,0.00021916,2]
[349600365,1737322254390,-630.49821158,0.00021916,2]
[349600367,1737322254399,-500.0,0.00021916,2]
[349600369,1737322254408,-500.0,0.00021916,2]
[349600371,1737322254417,-500.0,0.00021916,2]
[349600373,1737322254426,-870.44,0.00021916,2]
[349600375,1737322254435,-500.0,0.00021916,2]
[349600377,1737322254444,-500.0,0.00021916,2]
[349600379,1737322254453,-515.98214403,0.00021916,2]
[349600381,1737322254462,-500.0,0.00021916,2]
[349600383,1737322254471,-1267.35,0.00021916,2]
[349600385,1737322254481,-500.0,0.00021916,2]
[349600387,1737322254490,-379.82324336,0.00021916,2]
[349600389,1737322254499,-500.0,0.00021916,2]
[349600391,1737322254508,-500.0,0.00021916,2]
[349600393,1737322254518,-500.0,0.00021916,2]
[349600395,1737322254527,-500.0,0.00021916,2]
[349600397,1737322254537,-401.25737241,0.00021916,2]
[349600399,1737322254546,-1000.0,0.00021916,2]
[349600401,1737322254555,-500.0,0.00021916,2]
[349600403,1737322254564,-500.0,0.00021916,2]
[349600405,1737322254574,-500.0,0.00021916,2]
[349600407,1737322254583,-383.52003682,0.00021916,2]
[349600423,1737322254725,-116.47996318,0.00021916,2]
[349600425,1737322254735,-500.0,0.00021916,2]
[349600427,1737322254744,-526.12,0.00021916,2]
[349600429,1737322254754,-500.0,0.00021916,2]
[349600431,1737322254764,-777.04,0.00021916,2]
[349600433,1737322254773,-502.23,0.00021916,2]
[349600435,1737322254783,-500.0,0.00021916,2]
[349600437,1737322254793,-500.0,0.00021916,2]
[349600439,1737322254803,-500.0,0.00021916,2]
[349600441,1737322254812,-590.52,0.00021917,2]
[349600443,1737322254821,-500.0,0.00021917,2]
[349600445,1737322254831,-817.65,0.00021917,2]
[349600447,1737322254840,-257.46794966,0.00021917,2]
[349600449,1737322254852,-267.56,0.00021917,2]
[349600451,1737322254863,-206.73205034,0.00021917,2]
[349600453,1737322254876,-84.77594966,0.00021917,2]
[349600455,1737322254887,-402.0736,0.00021917,2]
[349600458,1737322254903,-244.91045034,0.00021917,2]
[349600460,1737322254913,-731.76,0.00021917,2]
[349600462,1737322254926,-731.76,0.00021917,2]
[349600464,1737322254936,-651.42454966,0.00021917,2]
[349600466,1737322254948,-80.33545034,0.00021917,2]
[349600468,1737322254958,-1000.0,0.00021917,3]
[349600470,1737322254970,-584.9939502,0.00021917,3]
[349600473,1737322254983,-415.0060498,0.00021917,3]
[349600475,1737322254993,-1000.0,0.00021917,3]
[349600477,1737322255005,-1000.0,0.00021917,3]
[349600479,1737322255016,-1000.0,0.00021917,3]
[349600481,1737322255026,-1000.0,0.00021917,3]
[349600483,1737322255035,-1000.0,0.00021917,3]
[349600485,1737322255046,-1000.0,0.00021917,3]
[349600487,1737322255055,-500.0,0.00021917,2]
[349600489,1737322255066,-987.09,0.00021917,2]
[349600491,1737322255076,-500.0,0.00021917,2]
[349600493,1737322255087,-500.0,0.00021917,2]
[349600495,1737322255097,-502.43,0.00021917,2]
[349600497,1737322255107,-963.33,0.00021917,2]
[349600499,1737322255117,-117.1394472,0.00021917,2]
[349600501,1737322255133,-382.8605528,0.00021917,2]
[349600503,1737322255143,-4000.0,0.00021918,2]
[349600505,1737322255154,-150.0,0.00021918,2]
[349600507,1737322255163,-150.011205,0.00021928,8]
[349600509,1737322255173,-157.011205,0.00021928,8]
[349600511,1737322255183,-157.011205,0.00021938,9]
[349600513,1737322255194,-157.011205,0.00021938,9]
[349600515,1737322255204,-157.011205,0.00021948,10]
[349600517,1737322255213,-157.011205,0.00021948,10]
[349600519,1737322255224,-303.02579283,0.0002197,2]
[349600521,1737322255233,-849.0,0.00021973,2]
[349600523,1737322255243,-1055.0,0.00021973,2]
[349600525,1737322255253,-1021.0,0.00021973,2]
[349600527,1737322255264,-6333.94886274,0.0002199,14]
[349600529,1737322255274,-1000.0,0.00021999,2]
[349600531,1737322255285,-500.0,0.00021999,2]
[349600533,1737322255297,-500.0,0.00021999,2]
[349600535,1737322255308,-500.0,0.00021999,2]
[349600537,1737322255318,-500.0,0.00021999,2]
[349600539,1737322255328,-500.0,0.00021999,2]
[349600541,1737322255338,-500.0,0.00021999,2]
[349600543,1737322255347,-500.0,0.00021999,2]
[349600545,1737322255358,-500.0,0.00021999,2]
[349600547,1737322255368,-46794.91478199,0.00022,2]
[349600549,1737322255384,-5242.0,0.00022,2]
[349600552,1737322255397,-6552.393565,0.00022,2]
[349600566,1737322255535,-169.175707,0.00019898,2]
[349600568,1737322255546,-500.0,0.00019898,2]
[349600570,1737322255556,-154.77153879,0.00019948,2]
[349600572,1737322255567,-491.21269326,0.00020966,2]
[349600574,1737322255577,-169.175707,0.00020994,2]
[349600576,1737322255586,-772.83,0.00021041,2]
[349600578,1737322255595,-444167.66624849,0.00022,2]
[349600580,1737322255605,-5175.47391967,0.00022,2]
[349600582,1737322255615,-150.0,0.00022,3]
[349600584,1737322255626,-130737.43593408,0.00022,2]
[349600586,1737322255638,-547.07835666,0.00022,2]
[349600588,1737322255650,-175563.3975415,0.00022,2]
[349600590,1737322255662,-49619.639,0.00022,2]
[349600601,1737322255754,-3529.46911129,0.00022,2]
[349600603,1737322255766,-2180.69825047,0.00022,2]
[349600605,1737322255778,-1851.4371518,0.00022,2]
[349600607,1737322255790,-783.09403964,0.00022,2]
[349600610,1737322255807,-675.50008839,0.00022,2]
[349600619,1737322255894,-226723.56028302,0.00022,2]
[349600918,1737322662118,1339.48,0.00019775,30]
[349600936,1737323431840,-1793.0,0.000172,2]
[349600937,1737323431849,-845.25,0.00017358,2]
[349600938,1737323431859,-19433.0585,0.00019078,2]
[349600939,1737323431868,-150.0,0.00019151,2]
[349600940,1737323431877,-150.0,0.00019177,2]
[349600941,1737323431887,-442.96049302,0.00019178,2]
[349600942,1737323431896,-508.03663349,0.00019178,2]
[349600943,1737323431905,-500.0,0.00019178,2]
[349600944,1737323431915,-500.0,0.00019178,2]
[349600945,1737323431924,-500.0,0.00019178,2]
[349600946,1737323431933,-500.0,0.00019178,2]
[349600947,1737323431942,-500.0,0.00019178,2]
[349600948,1737323431951,-500.0,0.00019178,2]
[349600949,1737323431961,-500.0,0.00019178,2]
[349600950,1737323431970,-500.0,0.00019178,2]
[349600951,1737323431980,-500.0,0.00019178,2]
[349600952,1737323431989,-500.0,0.00019178,2]
[349600953,1737323431998,-500.0,0.00019178,2]
[349600954,1737323432008,-500.0,0.00019178,2]
[349600955,1737323432017,-500.0,0.00019178,2]
[349600956,1737323432027,-500.0,0.00019178,2]
[349600957,1737323432036,-292.40810508,0.00019178,2]
[349600958,1737323432050,-500.0,0.00019178,2]
[349600959,1737323432059,-500.0,0.00019178,2]
[349600960,1737323432069,-500.0,0.00019178,2]
[349600961,1737323432078,-500.0,0.00019178,2]
[349600962,1737323432087,-500.0,0.00019178,2]
[349600963,1737323432097,-500.0,0.00019178,2]
[349600964,1737323432106,-500.0,0.00019178,2]
[349600965,1737323432115,-500.0,0.00019178,2]
[349600966,1737323432124,-500.0,0.00019178,2]
[349600967,1737323432134,-500.0,0.00019178,2]
[349600968,1737323432143,-500.0,0.00019178,2]
[349600969,1737323432152,-500.0,0.00019178,2]
[349600970,1737323432161,-500.0,0.00019178,2]
[349600971,1737323432171,-532.55,0.00019233,2]
[349600972,1737323432180,-1000.0,0.00019254,2]
[349600973,1737323432189,-13477.9506088,0.00019305,2]
[349600974,1737323432200,-251.1457752,0.00019305,2]
[349600975,1737323432211,-560.7025,0.00019305,2]
[349600976,1737323432227,-1038.6,0.00019305,2]
[349600977,1737323432242,-311.66262901,0.00019305,2]
[349600978,1737323432252,-2144.18740536,0.00019305,2]
[349600979,1737323432264,-6115.75108163,0.00019305,2]
[349600980,1737323432273,-172.02,0.0001938,2]
[349600981,1737323432283,-216.73,0.00019452,2]
[349600982,1737323432295,-500.0,0.00019452,2]
[349600983,1737323432305,-500.0,0.00019452,2]
[349600984,1737323432314,-500.0,0.00019452,2]
[349600985,1737323432323,-500.0,0.00019452,2]
[349600986,1737323432333,-500.0,0.00019452,2]
[349600987,1737323432343,-500.0,0.00019452,2]
[349600988,1737323432356,-500.0,0.00019452,2]
[349600989,1737323432368,-500.0,0.00019452,2]
[349600990,1737323432380,-500.0,0.00019452,2]
[349600991,1737323432392,-845.25,0.00019622,2]
[349600992,1737323432402,-207.38,0.0001969,2]
[349600993,1737323432411,-91459.90547631,0.000197,15]
[349600994,1737323432424,-56374.19333887,0.000197,15]
[349600995,1737323432442,-236935.7729388,0.000197,15]
[349600996,1737323432454,-143621.23392218,0.000197,15]
[349601134,1737323437764,-408.06427873,0.000197,15]
[349601135,1737323437774,-2238.46766942,0.000197,15]
[349601136,1737323437786,-2195.71902457,0.000197,15]
[349601137,1737323437801,-7336.8511832,0.000197,15]
[349601138,1737323437812,-587.34760114,0.000197,15]
[349601139,1737323437823,-404.62313792,0.000197,15]
[349601140,1737323437834,-44253.91963919,0.000197,15]
[349601141,1737323437853,-1518.88533789,0.000197,15]
[349601142,1737323437865,-31437.50399911,0.000197,15]
[349601143,1737323437998,-357980.14245267,0.000197,15]
[349601144,1737323438008,-500.0,0.00019726,2]
[349601145,1737323438019,-500.0,0.00019726,2]
[349601146,1737323438028,-500.0,0.00019726,2]
[349601147,1737323438037,-500.0,0.00019726,2]
[349601148,1737323438050,-623.87,0.00019726,2]
[349601149,1737323438060,-500.0,0.00019726,2]
[349601150,1737323438070,-500.0,0.00019726,2]
[349601151,1737323438080,-500.0,0.00019726,2]
[349601152,1737323438090,-1161.513,0.00019764,2]
[349601153,1737323438101,-500.0,0.00019798,2]
[349601154,1737323438111,-1000.0,0.00019798,2]
[349601155,1737323438121,-250.0,0.00019809,2]
[349601156,1737323438130,-250.0,0.00019872,2]
[349601157,1737323438140,-261.05787205,0.00019898,2]
[349601158,1737323438149,-500.0,0.00019898,2]
[349601159,1737323438158,-323.98140404,0.00019898,2]
[349601160,1737323438167,-625.30516773,0.00019898,2]
[349601161,1737323438176,-500.0,0.00019898,2]
[349601162,1737323438185,-500.0,0.00019898,2]
[349601163,1737323438194,-633.58,0.00019898,2]
[349601164,1737323438203,-500.0,0.00019898,2]
[349601165,1737323438213,-260.57618485,0.00019898,2]
[349601166,1737323438223,-536.18516507,0.00019898,2]
[349601167,1737323438232,-527.593227,0.00019898,2]
[349601168,1737323438244,-500.0,0.00019898,2]
[349601169,1737323438253,-500.0,0.00019898,2]
[349601170,1737323438262,-648.95376522,0.00019898,2]
[349601171,1737323438272,-500.0,0.00019898,2]
[349601173,1737323438282,-500.0,0.00019898,2]
[349601175,1737323438293,-500.0,0.00019898,2]
[349601177,1737323438304,-500.0,0.00019898,2]
[349601179,1737323438313,-500.0,0.00019898,2]
[349601180,1737323438323,-500.0,0.00019898,2]
[349601182,1737323438333,-500.0,0.00019898,2]
[349601184,1737323438342,-500.0,0.00019898,2]
[349601186,1737323438351,-500.0,0.00019898,2]
[349601188,1737323438362,-500.0,0.00019898,2]
[349601190,1737323438375,-500.0,0.00019898,2]
[349601192,1737323438384,-500.0,0.00019898,2]
[349601194,1737323438393,-500.0,0.00019898,2]
[349601196,1737323438403,-500.0,0.00019898,2]
[349601200,1737323438414,-500.0,0.00019898,2]
[349601202,1737323438423,-544.16790501,0.00019898,2]
[349601203,1737323438432,-500.0,0.00019898,2]
[349601204,1737323438441,-500.0,0.00019898,2]
[349601205,1737323438451,-500.0,0.00019898,2]
[349601206,1737323438461,-500.0,0.00019898,2]
[349601207,1737323438470,-500.0,0.00019898,2]
[349601208,1737323438479,-500.0,0.00019898,2]
[349601209,1737323438488,-500.0,0.00019898,2]
[349601210,1737323438497,-500.0,0.00019898,2]
[349601211,1737323438506,-500.0,0.00019898,2]
[349601212,1737323438516,-500.0,0.00019898,2]
[349601213,1737323438526,-500.0,0.00019898,2]
[349601214,1737323438536,-500.0,0.00019898,2]
[349601215,1737323438550,-500.0,0.00019898,2]
[349601216,1737323438560,-500.0,0.00019898,2]
[349601217,1737323438570,-500.0,0.00019898,2]
[349601218,1737323438579,-500.0,0.00019898,2]
[349601219,1737323438588,-500.0,0.00019898,2]
[349601220,1737323438598,-500.0,0.00019898,2]
[349601221,1737323438607,-500.0,0.00019898,2]
[349601222,1737323438616,-608.49427626,0.00019898,2]
[349601223,1737323438625,-500.0,0.00019898,2]
[349601224,1737323438635,-500.0,0.00019898,2]
[349601225,1737323438644,-500.0,0.00019898,2]
[349601226,1737323438653,-500.0,0.00019898,2]
[349601227,1737323438663,-500.0,0.00019898,2]
[349601228,1737323438673,-500.0,0.00019898,2]
[349601229,1737323438682,-500.0,0.00019898,2]
[349601230,1737323438692,-500.0,0.00019898,2]
[349601231,1737323438701,-500.0,0.00019898,2]
[349601232,1737323438711,-500.0,0.00019898,2]
[349601233,1737323438720,-500.0,0.00019898,2]
[349601234,1737323438729,-500.0,0.00019898,2]
[349601235,1737323438738,-500.0,0.00019898,2]
[349601236,1737323438747,-500.0,0.00019898,2]
[349601237,1737323438756,-500.0,0.00019898,2]
[349601238,1737323438765,-500.0,0.00019898,2]
[349601239,1737323438774,-503.58,0.00019898,2]
[349601240,1737323438783,-500.0,0.00019898,2]
[349601241,1737323438798,-190.54264988,0.00019898,2]
[349601242,1737323438807,-500.0,0.00019898,2]
[349601243,1737323438817,-500.0,0.00019898,2]
[349601244,1737323438826,-530.80157353,0.00019898,2]
[349601245,1737323438836,-792.1,0.00019898,2]
[349601246,1737323438845,-500.0,0.00019898,2]
[349601247,1737323438854,-500.0,0.00019898,2]
[349601248,1737323438863,-500.0,0.00019898,2]
[349601249,1737323438872,-500.0,0.00019898,2]
[349601250,1737323438882,-500.0,0.00019898,2]
[349601251,1737323438892,-500.0,0.00019898,2]
[349601252,1737323438901,-500.0,0.00019898,2]
[349601253,1737323438911,-500.0,0.00019898,2]
[349601254,1737323438921,-500.0,0.00019898,2]
[349601255,1737323438932,-500.0,0.00019898,2]
[349601256,1737323438941,-404.58928747,0.00019898,2]
[349601257,1737323438951,-500.0,0.00019898,2]
[349601258,1737323438961,-464.79798483,0.00019898,2]
[349601259,1737323438971,-500.0,0.00019898,2]
[349601260,1737323438980,-541.41,0.00019898,2]
[349601261,1737323438990,-500.0,0.0002,2]
[349601262,1737323438999,-500.0,0.0002,2]
[349601263,1737323439009,-500.0,0.0002,2]
[349601264,1737323439018,-500.0,0.0002,2]
[349601265,1737323439028,-500.0,0.0002,2]
[349601266,1737323439037,-500.0,0.0002,2]
[349601267,1737323439052,-772.83,0.00020082,2]
[349601268,1737323439062,-772.83,0.00020082,2]
[349601269,1737323439071,-772.83,0.00020082,2]
[349601270,1737323439081,-835.64,0.00020082,2]
[349601271,1737323439090,-251.54810222,0.00020172,2]
[349601272,1737323439100,-385.8,0.00020172,2]
[349601273,1737323439109,-500.0,0.00020172,2]
[349601274,1737323439119,-500.0,0.00020172,2]
[349601275,1737323439129,-244.07100294,0.00020172,2]
[349601276,1737323439139,-500.0,0.00020172,2]
[349601277,1737323439149,-500.0,0.00020172,2]
[349601278,1737323439158,-500.0,0.00020172,2]
[349601279,1737323439168,-500.0,0.00020172,2]
[349601280,1737323439177,-500.0,0.00020172,2]
[349601281,1737323439187,-500.0,0.00020172,2]
[349601282,1737323439196,-500.0,0.00020172,2]
[349601283,1737323439205,-500.0,0.00020172,2]
[349601284,1737323439214,-500.0,0.00020172,2]
[349601285,1737323439224,-500.0,0.00020172,2]
[349601286,1737323439234,-500.0,0.00020172,2]
[349601287,1737323439243,-792.1,0.00020172,2]
[349601288,1737323439253,-500.0,0.00020172,2]
[349601289,1737323439263,-500.0,0.00020172,2]
[349601290,1737323439272,-500.0,0.00020172,2]
[349601291,1737323439281,-362.09,0.00020172,2]
[349601292,1737323439291,-549.01675016,0.00020172,2]
[349601293,1737323439305,-500.0,0.00020172,2]
[349601294,1737323439315,-500.0,0.00020172,2]
[349601295,1737323439325,-541.41,0.00020172,2]
[349601296,1737323439334,-500.0,0.00020273,2]
[349601297,1737323439344,-500.0,0.00020273,2]
[349601298,1737323439354,-500.0,0.00020273,2]
[349601299,1737323439364,-500.0,0.00020273,2]
[349601300,1737323439374,-466.13872779,0.00020273,2]
[349601301,1737323439383,-500.0,0.00020273,2]
[349601302,1737323439397,-154.77153886,0.00020346,2]
[349601303,1737323439407,-576.013,0.00020346,2]
[349601304,1737323439416,-576.013,0.00020346,2]
[349601305,1737323439427,-576.013,0.00020346,2]
[349601306,1737323439438,-576.013,0.00020346,2]
[349601307,1737323439448,-576.013,0.00020346,2]
[349601308,1737323439457,-576.013,0.00020346,2]
[349601309,1737323439468,-576.013,0.00020346,2]
[349601310,1737323439478,-576.013,0.00020346,2]
[349601311,1737323439487,-576.013,0.00020346,2]
[349601313,1737323439668,-576.013,0.00020346,2]
[349601314,1737323439678,-500.0,0.00020446,2]
[349601315,1737323439689,-500.0,0.00020446,2]
[349601316,1737323439699,-500.0,0.00020446,2]
[349601317,1737323439708,-500.0,0.00020446,2]
[349601318,1737323439718,-500.0,0.00020446,2]
[349601319,1737323439727,-500.0,0.00020446,2]
[349601320,1737323439737,-500.0,0.00020446,2]
[349601321,1737323439747,-500.0,0.00020446,2]
[349601322,1737323439756,-500.0,0.00020446,2]
[349601323,1737323439766,-500.0,0.00020446,2]
[349601325,1737323439775,-500.0,0.00020446,2]
[349601326,1737323439785,-792.1,0.00020446,2]
[349601327,1737323439800,-500.0,0.00020446,2]
[349601329,1737323439810,-500.0,0.00020446,2]
[349601330,1737323439819,-500.0,0.00020446,2]
[349601331,1737323439829,-500.0,0.00020446,2]
[349601332,1737323439839,-1293.25112999,0.00020446,2]
[349601333,1737323439848,-353.94,0.00020446,2]
[349601334,1737323439857,-541.41,0.00020446,2]
[349601335,1737323439867,-1868.4723,0.00020446,2]
[349601336,1737323439877,-2546.9038,0.00020447,2]
[349601337,1737323439886,-154.77153879,0.00020466,2]
[349601338,1737323439896,-500.0,0.00020546,2]
[349601339,1737323439905,-500.0,0.00020546,2]
[349601340,1737323439915,-577.10901889,0.00020546,2]
[349601341,1737323439924,-500.0,0.00020546,2]
[349601342,1737323439934,-500.0,0.00020546,2]
[349601343,1737323439944,-294.02125602,0.00020546,2]
[349601344,1737323439954,-500.0,0.00020546,2]
[349601345,1737323439964,-500.0,0.00020546,2]
[349601346,1737323439975,-500.0,0.00020546,2]
[349601347,1737323439985,-500.0,0.00020546,2]
[349601348,1737323439995,-500.0,0.00020546,2]
[349601349,1737323440005,-320.07120325,0.00020546,2]
[349601350,1737323440015,-500.0,0.00020546,2]
[349601351,1737323440024,-500.0,0.00020546,2]
[349601352,1737323440033,-500.0,0.00020546,2]
[349601353,1737323440045,-500.0,0.00020546,2]
[349601354,1737323440058,-200.44632802,0.00020546,2]
[349601355,1737323440068,-500.0,0.00020546,2]
[349601356,1737323440078,-500.0,0.00020546,2]
[349601357,1737323440087,-321.16750276,0.00020546,2]
[349601358,1737323440097,-456.55797009,0.00020546,2]
[349601359,1737323440107,-500.0,0.00020546,2]
[349601360,1737323440116,-500.0,0.00020546,2]
[349601361,1737323440126,-500.0,0.00020546,2]
[349601362,1737323440136,-500.0,0.00020546,2]
[349601363,1737323440145,-500.0,0.00020546,2]
[349601364,1737323440155,-601.05858581,0.00020546,2]
[349601365,1737323440164,-500.0,0.00020546,2]
[349601366,1737323440174,-500.0,0.00020546,2]
[349601367,1737323440186,-500.0,0.00020546,2]
[349601368,1737323440199,-500.0,0.00020546,2]
[349601369,1737323440207,-500.0,0.00020546,2]
[349601370,1737323440216,-500.0,0.00020546,2]
[349601371,1737323440225,-500.0,0.00020546,2]
[349601372,1737323440234,-604.84882157,0.00020546,2]
[349601373,1737323440246,-566.29397585,0.00020546,2]
[349601374,1737323440256,-500.0,0.00020546,2]
[349601375,1737323440266,-500.0,0.00020546,2]
[349601376,1737323440276,-509.56376696,0.00020546,2]
[349601377,1737323440286,-500.0,0.00020546,2]
[349601378,1737323440302,-500.0,0.00020546,2]
[349601379,1737323440312,-500.0,0.00020546,2]
[349601380,1737323440322,-445.07696134,0.00020546,2]
[349601381,1737323440331,-500.0,0.00020546,2]
[349601382,1737323440341,-500.0,0.00020546,2]
[349601383,1737323440351,-500.0,0.00020546,2]
[349601384,1737323440361,-555.51,0.00020546,2]
[349601385,1737323440376,-500.0,0.00020546,2]
[349601386,1737323440385,-500.0,0.00020546,2]
[349601387,1737323440395,-500.0,0.00020546,2]
[349601388,1737323440407,-500.0,0.00020546,2]